[Event "Late-Titled-Tuesday-Blitz-February-13-2024"]
[Site "Chess.com"]
[Date "2024.02.13"]
[Round "3"]
[White "Chemim21"]
[Black "ClayK1ng"]
[Result "1-0"]
[WhiteElo "2241"]
[BlackElo "2443"]
[TimeControl "180+1"]
[EndTime "14:26:44 PST"]
[Termination "Chemim21 won by resignation"]

1. e4 {[%clk 0:02:56.9]} 1... g6 {[%clk 0:03:00.5]} 2. d4 {[%clk 0:02:56.2]}
2... Bg7 {[%clk 0:02:59.7]} 3. Nc3 {[%clk 0:02:56.2]} 3... d6 {[%clk 0:02:59.6]}
4. g3 {[%clk 0:02:56]} 4... Nd7 {[%clk 0:02:55.6]} 5. Bg2 {[%clk 0:02:55.5]}
5... c5 {[%clk 0:02:49]} 6. Nge2 {[%clk 0:02:52.4]} 6... cxd4 {[%clk 0:02:44.5]}
7. Nxd4 {[%clk 0:02:52.1]} 7... Ngf6 {[%clk 0:02:45.4]} 8. O-O {[%clk
0:02:46.6]} 8... O-O {[%clk 0:02:36.5]} 9. h3 {[%clk 0:02:43.4]} 9... a6 {[%clk
0:02:36.9]} 10. Be3 {[%clk 0:02:40.9]} 10... Nc5 {[%clk 0:02:36.9]} 11. Qd2
{[%clk 0:02:39.8]} 11... Ne6 {[%clk 0:02:37.3]} 12. f4 {[%clk 0:02:26.5]} 12...
Nxd4 {[%clk 0:02:34.8]} 13. Bxd4 {[%clk 0:02:25.8]} 13... e5 {[%clk 0:02:35.4]}
14. Be3 {[%clk 0:02:17.4]} 14... Nh5 {[%clk 0:02:29.4]} 15. Kh2 {[%clk
0:02:02.8]} 15... exf4 {[%clk 0:02:29.5]} 16. gxf4 {[%clk 0:02:01.8]} 16... Qh4
{[%clk 0:02:29.7]} 17. Qf2 {[%clk 0:01:45.9]} 17... Qxf2 {[%clk 0:02:28]} 18.
Rxf2 {[%clk 0:01:44.4]} 18... Be6 {[%clk 0:02:28.6]} 19. Nd5 {[%clk 0:01:41.1]}
19... Bxd5 {[%clk 0:02:28.6]} 20. exd5 {[%clk 0:01:40.9]} 20... Rfe8 {[%clk
0:02:29.5]} 21. Bb6 {[%clk 0:01:27]} 21... Nxf4 {[%clk 0:02:18.4]} 22. c3 {[%clk
0:01:16.4]} 22... Nxg2 {[%clk 0:02:10.6]} 23. Kxg2 {[%clk 0:01:15.5]} 23... Re5
{[%clk 0:02:10.1]} 24. c4 {[%clk 0:01:10.5]} 24... Rae8 {[%clk 0:02:09.8]} 25.
Bc7 {[%clk 0:01:05.8]} 25... Bf8 {[%clk 0:02:06.4]} 26. Raf1 {[%clk 0:01:02.7]}
26... f5 {[%clk 0:02:05.3]} 27. b4 {[%clk 0:01:00.2]} 27... Re2 {[%clk
0:02:05.1]} 28. c5 {[%clk 0:00:51.9]} 28... Rxf2+ {[%clk 0:01:34.1]} 29. Rxf2
{[%clk 0:00:51]} 29... dxc5 {[%clk 0:01:35]} 30. d6 {[%clk 0:00:50.4]} 30...
Bxd6 {[%clk 0:01:30.9]} 31. Bxd6 {[%clk 0:00:49.7]} 31... c4 {[%clk 0:01:31.8]}
32. a4 {[%clk 0:00:47.6]} 32... Kf7 {[%clk 0:01:26.4]} 33. a5 {[%clk 0:00:44.5]}
33... Rd8 {[%clk 0:01:24.6]} 34. Bc5 {[%clk 0:00:43.2]} 34... Rd3 {[%clk
0:01:24.5]} 35. Rc2 {[%clk 0:00:42]} 35... g5 {[%clk 0:01:20.5]} 36. Rxc4 {[%clk
0:00:40.3]} 36... h5 {[%clk 0:01:21.1]} 37. h4 {[%clk 0:00:38.2]} 37... Kf6
{[%clk 0:01:12]} 38. hxg5+ {[%clk 0:00:36.7]} 38... Kxg5 {[%clk 0:01:12.9]} 39.
Be7+ {[%clk 0:00:36.5]} 39... Kg6 {[%clk 0:01:11.6]} 40. Rc7 {[%clk 0:00:36.4]}
1-0

[Event "Late-Titled-Tuesday-Blitz-February-13-2024"]
[Site "Chess.com"]
[Date "2024.02.13"]
[Round "3"]
[White "Willhaven3"]
[Black "WPWPWP-2015"]
[Result "1-0"]
[WhiteElo "2627"]
[BlackElo "2433"]
[TimeControl "180+1"]
[EndTime "14:26:45 PST"]
[Termination "Willhaven3 won by checkmate"]

1. d4 {[%clk 0:03:00.9]} 1... Nf6 {[%clk 0:02:58.4]} 2. Nf3 {[%clk 0:03:00.7]}
2... e6 {[%clk 0:02:57.9]} 3. c4 {[%clk 0:03:01.1]} 3... b6 {[%clk 0:02:55.6]}
4. g3 {[%clk 0:03:00.7]} 4... Be7 {[%clk 0:02:55]} 5. Bg2 {[%clk 0:02:59.8]}
5... O-O {[%clk 0:02:55.9]} 6. O-O {[%clk 0:03:00.4]} 6... Bb7 {[%clk
0:02:55.8]} 7. Re1 {[%clk 0:03:00.5]} 7... d5 {[%clk 0:02:55.8]} 8. cxd5 {[%clk
0:02:59.1]} 8... exd5 {[%clk 0:02:56.1]} 9. Nc3 {[%clk 0:02:58.3]} 9... c6
{[%clk 0:02:55.5]} 10. Bf4 {[%clk 0:02:58]} 10... Nbd7 {[%clk 0:02:55.6]} 11.
Rc1 {[%clk 0:02:57.7]} 11... Re8 {[%clk 0:02:55]} 12. a3 {[%clk 0:02:56]} 12...
Nf8 {[%clk 0:02:54.2]} 13. b4 {[%clk 0:02:51.6]} 13... Ng6 {[%clk 0:02:53.5]}
14. Bg5 {[%clk 0:02:50.1]} 14... h6 {[%clk 0:02:53.2]} 15. Be3 {[%clk
0:02:47.2]} 15... Bd6 {[%clk 0:02:53.1]} 16. Qb3 {[%clk 0:02:45.7]} 16... Rxe3
{[%clk 0:02:48.1]} 17. fxe3 {[%clk 0:02:45.1]} 17... Qe7 {[%clk 0:02:47.9]} 18.
Nd1 {[%clk 0:02:44.9]} 18... Ne4 {[%clk 0:02:46.4]} 19. Nf2 {[%clk 0:02:41.4]}
19... Nf6 {[%clk 0:02:40.4]} 20. Nd2 {[%clk 0:02:23.8]} 20... h5 {[%clk
0:02:05.6]} 21. Qd3 {[%clk 0:02:09.1]} 21... h4 {[%clk 0:02:03.2]} 22. e4 {[%clk
0:02:09.1]} 22... hxg3 {[%clk 0:02:01.7]} 23. hxg3 {[%clk 0:02:10]} 23... Nh5
{[%clk 0:01:49.5]} 24. e5 {[%clk 0:02:07.8]} 24... Bc7 {[%clk 0:01:47.7]} 25. e4
{[%clk 0:01:54.4]} 25... Bd8 {[%clk 0:01:41.3]} 26. b5 {[%clk 0:01:47.5]} 26...
cxb5 {[%clk 0:01:27]} 27. exd5 {[%clk 0:01:46.9]} 27... Qg5 {[%clk 0:01:19.1]}
28. Nde4 {[%clk 0:01:42.4]} 28... Qh6 {[%clk 0:01:17.5]} 29. d6 {[%clk 0:01:34]}
29... Kf8 {[%clk 0:01:01.5]} 30. Qe3 {[%clk 0:01:31]} 30... Nhf4 {[%clk
0:00:10.9]} 31. gxf4 {[%clk 0:01:29.7]} 31... Nh4 {[%clk 0:00:11.5]} 32. Qg3
{[%clk 0:01:26.3]} 32... Nf5 {[%clk 0:00:09.8]} 33. Qh3 {[%clk 0:01:26.2]} 33...
Qg6 {[%clk 0:00:10]} 34. Qh8# {[%clk 0:01:22.6]} 1-0

[Event "Late-Titled-Tuesday-Blitz-February-13-2024"]
[Site "Chess.com"]
[Date "2024.02.13"]
[Round "3"]
[White "elgrona"]
[Black "SmirnovTimofey2000"]
[Result "1-0"]
[WhiteElo "2304"]
[BlackElo "1981"]
[TimeControl "180+1"]
[EndTime "14:26:47 PST"]
[Termination "elgrona won on time"]

1. Nf3 {[%clk 0:03:00.9]} 1... d5 {[%clk 0:02:58.3]} 2. b3 {[%clk 0:03:00.1]}
2... Bf5 {[%clk 0:02:56.9]} 3. Bb2 {[%clk 0:03:01]} 3... e6 {[%clk 0:02:56.8]}
4. g3 {[%clk 0:02:59.2]} 4... h6 {[%clk 0:02:53.6]} 5. Bg2 {[%clk 0:02:59.5]}
5... Nf6 {[%clk 0:02:53.6]} 6. O-O {[%clk 0:03:00]} 6... Be7 {[%clk 0:02:53]} 7.
d3 {[%clk 0:03:00.9]} 7... O-O {[%clk 0:02:52.5]} 8. Nbd2 {[%clk 0:03:01.7]}
8... Nbd7 {[%clk 0:02:46.2]} 9. c4 {[%clk 0:03:02.2]} 9... c6 {[%clk 0:02:46]}
10. a3 {[%clk 0:02:58.1]} 10... a5 {[%clk 0:02:39.1]} 11. Ra2 {[%clk 0:02:56.8]}
11... Re8 {[%clk 0:02:33.5]} 12. Qa1 {[%clk 0:02:56.3]} 12... Bh7 {[%clk
0:02:28.8]} 13. Ne5 {[%clk 0:02:42.8]} 13... Nxe5 {[%clk 0:02:00.4]} 14. Bxe5
{[%clk 0:02:42.4]} 14... Bd6 {[%clk 0:01:45.1]} 15. Rb1 {[%clk 0:02:00]} 15...
Bxe5 {[%clk 0:01:39.1]} 16. Qxe5 {[%clk 0:02:00.9]} 16... Qb8 {[%clk 0:01:34.2]}
17. Qxb8 {[%clk 0:01:53.5]} 17... Rexb8 {[%clk 0:01:30.8]} 18. Rab2 {[%clk
0:01:53.9]} 18... b5 {[%clk 0:01:22.8]} 19. cxb5 {[%clk 0:01:51.5]} 19... cxb5
{[%clk 0:01:23.1]} 20. Rc1 {[%clk 0:01:50.5]} 20... Rc8 {[%clk 0:01:23.4]} 21.
Rbc2 {[%clk 0:01:50.4]} 21... Rxc2 {[%clk 0:01:09.5]} 22. Rxc2 {[%clk
0:01:51.3]} 22... Kf8 {[%clk 0:01:04.9]} 23. Nf3 {[%clk 0:01:50.8]} 23... Nd7
{[%clk 0:01:00.8]} 24. Nd4 {[%clk 0:01:48.2]} 24... Rb8 {[%clk 0:00:44.1]} 25.
f4 {[%clk 0:01:39.3]} 25... Ke8 {[%clk 0:00:29.5]} 26. Kf2 {[%clk 0:01:37.4]}
26... b4 {[%clk 0:00:24.6]} 27. a4 {[%clk 0:01:36.7]} 27... Nb6 {[%clk
0:00:11.1]} 28. Ke3 {[%clk 0:01:29.3]} 28... Kd8 {[%clk 0:00:11.2]} 29. Nc6+
{[%clk 0:01:29.2]} 29... Kc7 {[%clk 0:00:09.4]} 30. Nxb8+ {[%clk 0:01:24]} 30...
Kxb8 {[%clk 0:00:09.6]} 31. Rc5 {[%clk 0:01:24.8]} 31... Kb7 {[%clk 0:00:03.8]}
32. Rxa5 {[%clk 0:01:25]} 32... Bg6 {[%clk 0:00:02.2]} 33. Rb5 {[%clk 0:01:25]}
1-0

[Event "Late-Titled-Tuesday-Blitz-February-13-2024"]
[Site "Chess.com"]
[Date "2024.02.13"]
[Round "3"]
[White "KacperKacprzak"]
[Black "Shankland"]
[Result "0-1"]
[WhiteElo "2715"]
[BlackElo "2953"]
[TimeControl "180+1"]
[EndTime "14:26:53 PST"]
[Termination "Shankland won by resignation"]

1. e4 {[%clk 0:02:59.9]} 1... c5 {[%clk 0:03:00]} 2. Nf3 {[%clk 0:02:59.6]} 2...
d6 {[%clk 0:03:00.4]} 3. d4 {[%clk 0:03:00.2]} 3... cxd4 {[%clk 0:03:01.3]} 4.
Nxd4 {[%clk 0:03:01.1]} 4... Nf6 {[%clk 0:03:01.7]} 5. Nc3 {[%clk 0:03:01.8]}
5... Nc6 {[%clk 0:03:02.3]} 6. f3 {[%clk 0:02:54.3]} 6... e5 {[%clk 0:03:01.7]}
7. Nb3 {[%clk 0:02:53.9]} 7... Be6 {[%clk 0:03:01.8]} 8. Nd5 {[%clk 0:02:52.9]}
8... Be7 {[%clk 0:03:01.4]} 9. Be3 {[%clk 0:02:50]} 9... O-O {[%clk 0:03:00.2]}
10. Qd2 {[%clk 0:02:45.3]} 10... a5 {[%clk 0:02:58.6]} 11. Rd1 {[%clk
0:02:06.9]} 11... a4 {[%clk 0:02:56.7]} 12. Nc1 {[%clk 0:02:06.9]} 12... Bxd5
{[%clk 0:02:48.9]} 13. exd5 {[%clk 0:02:07.8]} 13... Nd4 {[%clk 0:02:49.5]} 14.
Bxd4 {[%clk 0:02:03.1]} 14... exd4 {[%clk 0:02:50.4]} 15. Qxd4 {[%clk
0:02:03.6]} 15... Nd7 {[%clk 0:02:49.8]} 16. Be2 {[%clk 0:02:00.6]} 16... Bf6
{[%clk 0:02:30.3]} 17. Qb4 {[%clk 0:02:00.2]} 17... Qc7 {[%clk 0:02:30.1]} 18.
c3 {[%clk 0:01:59.7]} 18... a3 {[%clk 0:02:29.4]} 19. O-O {[%clk 0:01:51.1]}
19... axb2 {[%clk 0:02:25.6]} 20. Qxb2 {[%clk 0:01:52]} 20... Nc5 {[%clk
0:02:19.5]} 21. Kh1 {[%clk 0:01:49]} 21... Na4 {[%clk 0:02:18.9]} 22. Qb3 {[%clk
0:01:47.5]} 22... Nxc3 {[%clk 0:02:17.9]} 23. Rde1 {[%clk 0:01:47]} 23... g6
{[%clk 0:02:10]} 24. Bd3 {[%clk 0:01:43.7]} 24... Ra5 {[%clk 0:02:06.2]} 25. Be4
{[%clk 0:01:41]} 25... Rfa8 {[%clk 0:02:03.3]} 26. Rf2 {[%clk 0:01:34.8]} 26...
Rc5 {[%clk 0:01:55.4]} 27. Nd3 {[%clk 0:01:12.3]} 27... Rb5 {[%clk 0:01:55.3]}
28. Qc2 {[%clk 0:00:58.4]} 28... Rxa2 {[%clk 0:01:53.6]} 29. Qc1 {[%clk
0:00:58.9]} 29... Rxf2 {[%clk 0:01:48.7]} 30. Nxf2 {[%clk 0:00:59.8]} 30... Rc5
{[%clk 0:01:46.1]} 31. Qf4 {[%clk 0:00:57.1]} 31... Be5 {[%clk 0:01:44.1]} 32.
Qh4 {[%clk 0:00:55.7]} 32... Nxe4 {[%clk 0:01:39.9]} 33. Nxe4 {[%clk 0:00:56.6]}
33... Rc1 {[%clk 0:01:39.8]} 34. Qf2 {[%clk 0:00:48.3]} 34... b5 {[%clk
0:01:29.7]} 35. g3 {[%clk 0:00:47.6]} 35... b4 {[%clk 0:01:25.1]} 36. f4 {[%clk
0:00:46.3]} 36... Bd4 {[%clk 0:01:24.1]} 37. Qe2 {[%clk 0:00:34.4]} 37... b3
{[%clk 0:01:23]} 38. Kg2 {[%clk 0:00:27.5]} 38... Rc2 {[%clk 0:01:22.3]} 39. Nd2
{[%clk 0:00:26.8]} 39... Qc3 {[%clk 0:01:20.9]} 40. Rd1 {[%clk 0:00:25.9]} 40...
b2 {[%clk 0:01:20.4]} 41. Kh3 {[%clk 0:00:22.2]} 41... Rxd2 {[%clk 0:01:18.1]}
0-1

[Event "Late-Titled-Tuesday-Blitz-February-13-2024"]
[Site "Chess.com"]
[Date "2024.02.13"]
[Round "3"]
[White "YellowJacek"]
[Black "mjelcic"]
[Result "0-1"]
[WhiteElo "2382"]
[BlackElo "2209"]
[TimeControl "180+1"]
[EndTime "14:27:05 PST"]
[Termination "mjelcic won by resignation"]

1. e4 {[%clk 0:02:55.1]} 1... g6 {[%clk 0:02:59]} 2. d4 {[%clk 0:02:54.9]} 2...
Bg7 {[%clk 0:02:59.4]} 3. Nf3 {[%clk 0:02:55.5]} 3... c5 {[%clk 0:02:59.6]} 4.
dxc5 {[%clk 0:02:54.8]} 4... Na6 {[%clk 0:02:59]} 5. Bxa6 {[%clk 0:02:46.9]}
5... bxa6 {[%clk 0:02:58.8]} 6. c3 {[%clk 0:02:41.6]} 6... Bb7 {[%clk 0:02:56]}
7. Nbd2 {[%clk 0:02:37.9]} 7... Rc8 {[%clk 0:02:51.9]} 8. Qb3 {[%clk 0:02:28.1]}
8... Rb8 {[%clk 0:02:41.4]} 9. Qc4 {[%clk 0:02:23.9]} 9... Qc7 {[%clk
0:02:37.2]} 10. O-O {[%clk 0:02:16.5]} 10... a5 {[%clk 0:02:33.9]} 11. Rb1
{[%clk 0:02:13.1]} 11... Nf6 {[%clk 0:02:22.9]} 12. b4 {[%clk 0:02:11.5]} 12...
axb4 {[%clk 0:02:03.6]} 13. cxb4 {[%clk 0:02:12.4]} 13... O-O {[%clk 0:02:02.4]}
14. Bb2 {[%clk 0:02:07.4]} 14... Rfc8 {[%clk 0:01:49.1]} 15. Nd4 {[%clk
0:01:59.9]} 15... Nxe4 {[%clk 0:01:40.5]} 16. Nxe4 {[%clk 0:01:57.9]} 16... Bxe4
{[%clk 0:01:36.7]} 17. Rbe1 {[%clk 0:01:56.9]} 17... Qb7 {[%clk 0:01:26.8]} 18.
f3 {[%clk 0:01:44.3]} 18... Bd5 {[%clk 0:01:26.6]} 19. Qd3 {[%clk 0:01:35.1]}
19... Qxb4 {[%clk 0:01:25.6]} 20. Ba1 {[%clk 0:01:19.4]} 20... Bc4 {[%clk
0:01:24.2]} 21. Qe3 {[%clk 0:01:07.2]} 21... Bxf1 {[%clk 0:01:23.2]} 22. Rxf1
{[%clk 0:01:03.5]} 22... Qxc5 {[%clk 0:01:19.1]} 23. Re1 {[%clk 0:01:00.5]}
23... e5 {[%clk 0:01:14.7]} 24. Nb3 {[%clk 0:00:57.4]} 24... Qxe3+ {[%clk
0:01:12.5]} 25. Rxe3 {[%clk 0:00:58.3]} 25... Rxb3 {[%clk 0:01:08.4]} 26. Rxb3
{[%clk 0:00:53.8]} 26... Rc1+ {[%clk 0:01:07.8]} 27. Kf2 {[%clk 0:00:54.7]}
27... Rxa1 {[%clk 0:01:07.9]} 28. Rb7 {[%clk 0:00:54.4]} 28... Rxa2+ {[%clk
0:01:06.9]} 29. Kg3 {[%clk 0:00:54.7]} 29... d5 {[%clk 0:01:06.9]} 30. Rd7
{[%clk 0:00:53]} 30... d4 {[%clk 0:01:06.7]} 31. h4 {[%clk 0:00:53.9]} 31... h5
{[%clk 0:01:05.4]} 32. Kh3 {[%clk 0:00:53.5]} 32... a5 {[%clk 0:01:04.4]} 33. g4
{[%clk 0:00:53.9]} 33... hxg4+ {[%clk 0:01:04.1]} 34. fxg4 {[%clk 0:00:54.8]}
34... Ra3+ {[%clk 0:01:04.4]} 35. Kg2 {[%clk 0:00:54.6]} 35... a4 {[%clk
0:01:00.9]} 36. h5 {[%clk 0:00:54.7]} 36... gxh5 {[%clk 0:01:00.4]} 37. gxh5
{[%clk 0:00:55.6]} 37... Re3 {[%clk 0:00:59.7]} 38. Kf2 {[%clk 0:00:55.3]} 38...
a3 {[%clk 0:00:59.3]} 39. Ra7 {[%clk 0:00:55.5]} 39... Rh3 {[%clk 0:00:56.2]}
40. Ke2 {[%clk 0:00:54.9]} 40... Rxh5 {[%clk 0:00:55.3]} 41. Rxa3 {[%clk
0:00:53.8]} 41... e4 {[%clk 0:00:54.3]} 42. Ra7 {[%clk 0:00:52.2]} 42... Rh2+
{[%clk 0:00:53.9]} 43. Kf1 {[%clk 0:00:52.5]} 43... d3 {[%clk 0:00:54]} 44. Ra8+
{[%clk 0:00:51.9]} 44... Kh7 {[%clk 0:00:53.8]} 45. Kg1 {[%clk 0:00:52.8]} 45...
Rb2 {[%clk 0:00:49.6]} 46. Rd8 {[%clk 0:00:53]} 46... d2 {[%clk 0:00:48]} 47.
Kf1 {[%clk 0:00:51.8]} 47... Rb1+ {[%clk 0:00:48.1]} 48. Ke2 {[%clk 0:00:51.8]}
48... d1=Q+ {[%clk 0:00:48.7]} 49. Rxd1 {[%clk 0:00:51.6]} 49... Rxd1 {[%clk
0:00:49.6]} 50. Kxd1 {[%clk 0:00:52]} 50... f5 {[%clk 0:00:49.9]} 51. Ke2 {[%clk
0:00:52.9]} 51... Bd4 {[%clk 0:00:49.4]} 0-1

[Event "Late-Titled-Tuesday-Blitz-February-13-2024"]
[Site "Chess.com"]
[Date "2024.02.13"]
[Round "3"]
[White "DanylaBagrov"]
[Black "NovakRatko"]
[Result "1-0"]
[WhiteElo "2562"]
[BlackElo "2327"]
[TimeControl "180+1"]
[EndTime "14:27:06 PST"]
[Termination "DanylaBagrov won by resignation"]

1. f4 {[%clk 0:03:00.9]} 1... d5 {[%clk 0:02:57.3]} 2. Nf3 {[%clk 0:02:55]} 2...
c5 {[%clk 0:02:57.4]} 3. g3 {[%clk 0:02:52]} 3... Nc6 {[%clk 0:02:57.6]} 4. Bg2
{[%clk 0:02:52.6]} 4... f6 {[%clk 0:02:58.2]} 5. O-O {[%clk 0:02:53.2]} 5... e5
{[%clk 0:02:58.6]} 6. fxe5 {[%clk 0:02:53]} 6... fxe5 {[%clk 0:02:58.2]} 7. d3
{[%clk 0:02:31.4]} 7... Nf6 {[%clk 0:02:57.9]} 8. Nc3 {[%clk 0:02:24.9]} 8...
Be7 {[%clk 0:02:57.5]} 9. e4 {[%clk 0:02:13.3]} 9... dxe4 {[%clk 0:02:48.6]} 10.
Nxe4 {[%clk 0:01:43.7]} 10... Nxe4 {[%clk 0:02:46.2]} 11. dxe4 {[%clk
0:01:44.6]} 11... Qxd1 {[%clk 0:02:34.9]} 12. Rxd1 {[%clk 0:01:45.5]} 12... Bg4
{[%clk 0:02:35]} 13. c3 {[%clk 0:01:27.7]} 13... O-O {[%clk 0:02:32.9]} 14. Rf1
{[%clk 0:01:18.2]} 14... Rad8 {[%clk 0:02:27.6]} 15. Be3 {[%clk 0:01:04.7]}
15... b6 {[%clk 0:02:26.9]} 16. h3 {[%clk 0:00:50.1]} 16... Bh5 {[%clk
0:02:23.6]} 17. g4 {[%clk 0:00:40]} 17... Bg6 {[%clk 0:02:20.9]} 18. Nd2 {[%clk
0:00:31.4]} 18... Rd3 {[%clk 0:02:13.3]} 19. Rae1 {[%clk 0:00:29.5]} 19... Rfd8
{[%clk 0:02:07.7]} 20. Rf2 {[%clk 0:00:25.3]} 20... b5 {[%clk 0:02:01.1]} 21.
Bf1 {[%clk 0:00:25.4]} 21... Rxd2 {[%clk 0:01:37.1]} 22. Rxd2 {[%clk 0:00:24.4]}
22... Rxd2 {[%clk 0:01:36.1]} 23. Bxd2 {[%clk 0:00:25.3]} 23... c4 {[%clk
0:01:36.8]} 24. Kg2 {[%clk 0:00:20.9]} 24... Kf8 {[%clk 0:01:33.4]} 25. Kf3
{[%clk 0:00:21.3]} 25... Kf7 {[%clk 0:01:33.2]} 26. Be3 {[%clk 0:00:21.9]} 26...
a6 {[%clk 0:01:32.8]} 27. Rd1 {[%clk 0:00:21.9]} 27... Ke6 {[%clk 0:01:32.3]}
28. b3 {[%clk 0:00:19.4]} 28... cxb3 {[%clk 0:01:30]} 29. axb3 {[%clk
0:00:20.3]} 29... Na5 {[%clk 0:01:28.9]} 30. b4 {[%clk 0:00:19.9]} 30... Nc4
{[%clk 0:01:07.2]} 31. Bxc4+ {[%clk 0:00:14.2]} 31... bxc4 {[%clk 0:01:06.7]}
32. Ra1 {[%clk 0:00:15.1]} 1-0

[Event "Late-Titled-Tuesday-Blitz-February-13-2024"]
[Site "Chess.com"]
[Date "2024.02.13"]
[Round "3"]
[White "FMJoseHerrera"]
[Black "Mikayel99"]
[Result "1-0"]
[WhiteElo "2704"]
[BlackElo "2500"]
[TimeControl "180+1"]
[EndTime "14:27:09 PST"]
[Termination "FMJoseHerrera won on time"]

1. Nf3 {[%clk 0:03:00.9]} 1... d5 {[%clk 0:02:58.9]} 2. g3 {[%clk 0:03:01.8]}
2... g6 {[%clk 0:02:58.7]} 3. Bg2 {[%clk 0:03:02.2]} 3... Bg7 {[%clk 0:02:59.4]}
4. d3 {[%clk 0:03:02.9]} 4... e5 {[%clk 0:02:59.8]} 5. Nc3 {[%clk 0:03:03.6]}
5... Ne7 {[%clk 0:03:00.2]} 6. h4 {[%clk 0:03:03.9]} 6... h5 {[%clk 0:02:55.8]}
7. e4 {[%clk 0:03:03.8]} 7... d4 {[%clk 0:02:51.8]} 8. Ne2 {[%clk 0:03:03.9]}
8... Nbc6 {[%clk 0:02:50.6]} 9. O-O {[%clk 0:03:03.4]} 9... Bg4 {[%clk
0:02:47.7]} 10. Nh2 {[%clk 0:03:03.3]} 10... Bxe2 {[%clk 0:02:47.2]} 11. Qxe2
{[%clk 0:03:04.2]} 11... Qd6 {[%clk 0:02:44.6]} 12. f4 {[%clk 0:03:04.1]} 12...
O-O-O {[%clk 0:02:43.5]} 13. f5 {[%clk 0:03:04]} 13... Bh6 {[%clk 0:02:29.9]}
14. Bxh6 {[%clk 0:02:59.8]} 14... Rxh6 {[%clk 0:02:30.8]} 15. Nf3 {[%clk
0:02:44.6]} 15... gxf5 {[%clk 0:02:25.2]} 16. exf5 {[%clk 0:02:45.5]} 16... Nd5
{[%clk 0:02:17.3]} 17. Ng5 {[%clk 0:02:40.9]} 17... Rf8 {[%clk 0:02:02.6]} 18.
b4 {[%clk 0:02:10.2]} 18... Ne3 {[%clk 0:01:50.7]} 19. b5 {[%clk 0:02:10.1]}
19... Ne7 {[%clk 0:01:37.1]} 20. Qf3 {[%clk 0:02:09.3]} 20... Nxg2 {[%clk
0:01:35.9]} 21. Qxg2 {[%clk 0:02:08.7]} 21... f6 {[%clk 0:01:25.4]} 22. Ne4
{[%clk 0:02:03.4]} 22... Qd5 {[%clk 0:01:22.1]} 23. a4 {[%clk 0:02:02.4]} 23...
Kb8 {[%clk 0:01:08.5]} 24. Kh2 {[%clk 0:01:59.8]} 24... Nc8 {[%clk 0:01:07.5]}
25. a5 {[%clk 0:01:59.2]} 25... Nd6 {[%clk 0:01:06.8]} 26. b6 {[%clk 0:01:50.5]}
26... Nxe4 {[%clk 0:00:57.5]} 27. bxa7+ {[%clk 0:01:48]} 27... Kxa7 {[%clk
0:00:58.4]} 28. dxe4 {[%clk 0:01:48.4]} 28... Qc4 {[%clk 0:00:51.9]} 29. Rfb1
{[%clk 0:01:48.5]} 29... Rh7 {[%clk 0:00:42.9]} 30. Qd2 {[%clk 0:01:43.9]} 30...
Rg8 {[%clk 0:00:35.1]} 31. Rb4 {[%clk 0:01:42.6]} 31... Qc5 {[%clk 0:00:27.9]}
32. Rab1 {[%clk 0:01:41]} 32... c6 {[%clk 0:00:28.3]} 33. Rb6 {[%clk 0:01:33]}
33... Rhg7 {[%clk 0:00:21.2]} 34. Qd3 {[%clk 0:01:27.6]} 34... Qxa5 {[%clk
0:00:08.9]} 35. Qb3 {[%clk 0:01:06.7]} 35... Qd2+ {[%clk 0:00:04]} 36. Kh1
{[%clk 0:01:03.9]} 36... Qc3 {[%clk 0:00:01.8]} 37. Rxb7+ {[%clk 0:01:04]} 37...
Ka8 {[%clk 0:00:02.3]} 38. Qa4+ {[%clk 0:01:03.2]} 1-0

[Event "Late-Titled-Tuesday-Blitz-February-13-2024"]
[Site "Chess.com"]
[Date "2024.02.13"]
[Round "3"]
[White "giovannibrandao7"]
[Black "scandalgod"]
[Result "0-1"]
[WhiteElo "2254"]
[BlackElo "2517"]
[TimeControl "180+1"]
[EndTime "14:27:10 PST"]
[Termination "scandalgod won by resignation"]

1. e4 {[%clk 0:03:00.9]} 1... e5 {[%clk 0:02:58.4]} 2. Nf3 {[%clk 0:03:01.4]}
2... Nc6 {[%clk 0:02:55]} 3. Bb5 {[%clk 0:03:01.4]} 3... a6 {[%clk 0:02:54]} 4.
Ba4 {[%clk 0:03:01.7]} 4... d6 {[%clk 0:02:51.9]} 5. O-O {[%clk 0:02:58.4]} 5...
Bg4 {[%clk 0:02:49.8]} 6. Bxc6+ {[%clk 0:02:57.7]} 6... bxc6 {[%clk 0:02:47.5]}
7. c3 {[%clk 0:02:57.6]} 7... Qf6 {[%clk 0:02:44]} 8. d3 {[%clk 0:02:55.5]} 8...
Ne7 {[%clk 0:02:40.7]} 9. Nbd2 {[%clk 0:02:52.5]} 9... g5 {[%clk 0:02:39.2]} 10.
h3 {[%clk 0:02:21.4]} 10... Bd7 {[%clk 0:02:36.6]} 11. Nh2 {[%clk 0:02:13]}
11... h5 {[%clk 0:02:33.7]} 12. Re1 {[%clk 0:01:47.2]} 12... g4 {[%clk
0:02:28.3]} 13. hxg4 {[%clk 0:01:36.7]} 13... hxg4 {[%clk 0:02:27.4]} 14. Ndf1
{[%clk 0:01:36.1]} 14... Qh4 {[%clk 0:02:21]} 15. g3 {[%clk 0:01:26.8]} 15...
Qh3 {[%clk 0:02:16.6]} 16. d4 {[%clk 0:01:18.9]} 16... Ng6 {[%clk 0:02:12.6]}
17. b3 {[%clk 0:00:49.1]} 17... Bg7 {[%clk 0:02:11.7]} 18. d5 {[%clk 0:00:47.3]}
18... cxd5 {[%clk 0:02:07.6]} 19. Qxd5 {[%clk 0:00:46.9]} 19... Rd8 {[%clk
0:01:52.5]} 20. Bg5 {[%clk 0:00:45.1]} 20... f6 {[%clk 0:01:47.3]} 21. Be3
{[%clk 0:00:42.8]} 21... Ke7 {[%clk 0:01:41.5]} 22. c4 {[%clk 0:00:41.1]} 22...
Bh6 {[%clk 0:01:25.7]} 23. Rad1 {[%clk 0:00:34.3]} 23... Nf4 {[%clk 0:01:21]}
24. Bxf4 {[%clk 0:00:30.9]} 24... exf4 {[%clk 0:01:16.1]} 25. e5 {[%clk
0:00:18.6]} 25... fxe5 {[%clk 0:01:09.6]} 26. c5 {[%clk 0:00:07.4]} 26... Be6
{[%clk 0:00:55.1]} 27. cxd6+ {[%clk 0:00:06.8]} 27... cxd6 {[%clk 0:00:55.5]}
28. Qg2 {[%clk 0:00:05]} 28... Qxg2+ {[%clk 0:00:52.6]} 29. Kxg2 {[%clk
0:00:05.8]} 29... f3+ {[%clk 0:00:52]} 30. Kg1 {[%clk 0:00:05.8]} 30... Rc8
{[%clk 0:00:51.2]} 0-1